fUST/lending_fUST_20241122
["ID","MTS","AMOUNT","RATE_DAILY","PERIOD"]
[342981802,1732247094298,-500.0,0.00033,30]
[342981803,1732247094324,-500.0,0.00033,30]
[342981804,1732247094351,-500.0,0.00033,30]
[342981805,1732247094376,-500.0,0.00033,30]
[342981806,1732247094403,-500.0,0.00033,30]
[342981807,1732247094428,-500.0,0.00033,30]
[342981808,1732247094456,-500.0,0.00033,30]
[342981809,1732247094482,-500.0,0.00033,30]
[342981810,1732247094511,-500.0,0.00033,30]
[342981811,1732247094538,-500.0,0.00033,30]
[342981812,1732247094565,-500.0,0.00033,30]
[342981813,1732247094591,-500.0,0.00033,30]
[342981814,1732247094618,-500.0,0.00033,30]
[342981815,1732247094644,-500.0,0.00033,30]
[342981816,1732247094669,-500.0,0.00033,30]
[342981817,1732247094697,-190.0,0.00033,30]
[342981818,1732247094723,-500.0,0.00033,30]
[342981819,1732247094749,-500.0,0.00033,30]
[342981820,1732247094775,-499.3,0.00033,30]
[342981821,1732247094800,-500.0,0.00033,30]
[342981822,1732247094825,-500.0,0.00033,30]
[342981823,1732247094851,-500.0,0.00033,30]
[342981824,1732247094878,-500.0,0.00033,30]
[342981825,1732247094904,-551.10620008,0.00033,30]
[342981826,1732247094929,-500.0,0.00033,30]
[342981827,1732247094958,-500.0,0.00033,30]
[342981828,1732247094984,-510.38482046,0.00033,30]
[342981829,1732247095010,-500.0,0.00033,30]
[342981830,1732247095036,-500.0,0.00033,30]
[342981831,1732247095063,-500.0,0.00033,30]
[342981832,1732247095089,-500.0,0.00033,30]
[342981833,1732247095115,-2700.0,0.00033,30]
[342981834,1732247095141,-172.73451811,0.00033,30]
[342981835,1732247095168,-2700.0,0.00033,30]
[342981836,1732247095196,-2700.0,0.00033,30]
[342981837,1732247095223,-2700.0,0.00033,30]
[342981838,1732247095250,-2700.0,0.00033,30]
[342981839,1732247095275,-2700.0,0.00033,30]
[342981840,1732247095302,-2700.0,0.00033,30]
[342981841,1732247095328,-2700.0,0.00033,30]
[342981842,1732247095355,-2700.0,0.00033,30]
[342981843,1732247095380,-2700.0,0.00033,30]
[342981844,1732247095406,-516.79169786,0.00033,30]
[342981845,1732247095432,-2700.0,0.00033,30]
[342981846,1732247095459,-2700.0,0.00033,30]
[342981847,1732247095485,-2700.0,0.00033,30]
[342981848,1732247095512,-2700.0,0.00033,30]
[342981849,1732247095538,-2500.0,0.00033,30]
[342981850,1732247095564,-2700.0,0.00033,30]
[342981851,1732247095590,-947.74917197,0.00033,30]
[342981852,1732247095616,-2500.0,0.00033,30]
[342981853,1732247095643,-163.20165687,0.00033,30]
[342981854,1732247095668,-500.0,0.00033,30]
[342981855,1732247095697,-508.94618111,0.00033,30]
[342981856,1732247095724,-2500.0,0.00033,30]
[342981857,1732247095751,-2500.0,0.00033,30]
[342981858,1732247095777,-2500.0,0.00033,30]
[342981859,1732247095804,-2500.0,0.00033,30]
[342981860,1732247095831,-2500.0,0.00033,30]
[342981861,1732247095858,-2500.0,0.00033,30]
[342981862,1732247095885,-2500.0,0.00033,30]
[342981863,1732247095911,-2500.0,0.00033,30]
[342981864,1732247095937,-2500.0,0.00033,30]
[342981865,1732247095964,-2500.0,0.00033,30]
[342981866,1732247095991,-2500.0,0.00033,30]
[342981867,1732247096019,-2500.0,0.00033,30]
[342981868,1732247096048,-2500.0,0.00033,30]
[342981869,1732247096075,-499.3,0.00033,30]
[342981870,1732247096104,-151.0,0.0003337,120]
[342981871,1732247096132,-188.0,0.00033698,30]
[342981872,1732247096159,-188.0,0.00033698,30]
[342981873,1732247096319,-188.0,0.00033698,30]
[342981874,1732247096347,-188.0,0.00033698,30]
[342981875,1732247096373,-188.0,0.00033698,30]
[342981876,1732247096401,-188.0,0.00033698,30]
[342981877,1732247096428,-188.0,0.00033698,30]
[342981878,1732247096457,-188.0,0.00033698,30]
[342981879,1732247096483,-188.0,0.00033698,30]
[342981880,1732247096515,-188.0,0.00033698,30]
[342981881,1732247096542,-188.0,0.00033698,30]
[342981882,1732247096569,-155.33925504,0.00033698,30]
[342981883,1732247096596,-185.42222222,0.00033836,120]
[342981884,1732247096623,-352.26797521,0.00033973,21]
[342981885,1732247096649,-300.0,0.00034,120]
[342981886,1732247096674,-20000.0,0.00034,120]
[342981887,1732247096701,-250.0,0.00034,30]
[342981888,1732247096726,-800.0,0.0003401,60]
[342981889,1732247096751,-500.0,0.00034246,23]
[342981890,1732247096777,-206.18340876,0.000344,31]
[342981891,1732247096804,-151.0,0.00034493,120]
[342981892,1732247096829,-3767.3,0.000345,30]
[342981893,1732247096856,-185.42222222,0.00034795,120]
[342981894,1732247096881,-17885.08382771,0.0003484,30]
[342981895,1732247096907,-1000.0,0.00035,120]
[342981896,1732247096935,-200.0,0.00035,120]
[342981897,1732247096963,-50000.0,0.00035,20]
[342981898,1732247096989,-50000.0,0.00035,20]
[342981899,1732247097016,-150.0,0.00035,69]
[342981900,1732247097045,-408.60654682,0.00035,60]
[342981901,1732247097071,-30000.0,0.00035,120]
[342981902,1732247097099,-15000.92947807,0.00035,30]
[342981903,1732247121046,-400.0,0.00027,30]
[342981904,1732247121115,-6838.07052193,0.00035,30]
[342981905,1732247121142,-200.0,0.00035,120]
[342981906,1732247121169,-268.85464,0.00035,120]
[342981907,1732247121195,-200.0,0.00035,120]
[342981908,1732247121223,-200.0,0.00035,120]
[342981909,1732247121250,-200.0,0.00035,120]
[342981910,1732247121276,-200.0,0.00035,120]
[342981911,1732247121302,-200.0,0.00035,120]
[342981912,1732247121328,-276.70963,0.00035,120]
[342981913,1732247121353,-22537.39436664,0.00035,30]
[342981914,1732247121378,-153.92677992,0.00035,30]
[342981915,1732247121403,-7197.73638309,0.00035,120]
[342981916,1732247121429,-290.91597,0.00035,120]
[342981917,1732247121454,-4667.18760927,0.00035,60]
[342981918,1732247121479,-800.0,0.00035106,60]
[342981919,1732247121504,-6250.0,0.0003516,120]
[342981920,1732247121532,-2669.63319486,0.000354,30]
[342981921,1732247121558,-500.0,0.00035616,25]
[342981922,1732247121583,-151.0,0.00035616,120]
[342981923,1732247121612,-317.03090421,0.00035616,30]
[342981924,1732247121638,-185.42222222,0.00035753,120]
[342981925,1732247121663,-1334.56,0.00036,30]
[342981926,1732247121689,-300.0,0.00036,120]
[342981927,1732247121716,-10157.8,0.00036,30]
[342981928,1732247121742,-151.35,0.00036,86]
[342981929,1732247121766,-250.0,0.00036,30]
[342981930,1732247121792,-800.0,0.00036202,60]
[342981931,1732247121818,-270.37789512,0.000365,120]
[342981932,1732247121843,-400.0,0.000366,120]
[342981933,1732247121868,-185.42222222,0.00036712,120]
[342981934,1732247121893,-151.0,0.0003674,120]
[342981935,1732247121919,-100000.0,0.00036848,120]
[342981936,1732247121944,-296274.78526932,0.000369,120]
[342981937,1732247121971,-500.0,0.00036986,27]
[342981938,1732247121998,-1000.0,0.00037,120]
[342981939,1732247122025,-200.0,0.00037,120]
[342981940,1732247122051,-18662.47355415,0.00037,60]
[342981941,1732247122077,-800.0,0.00037298,60]
[342981942,1732247122103,-2669.63319486,0.000374,30]
[342981943,1732247122129,-61637.13482262,0.00037484,120]
[342981944,1732247122156,-4539.39258603,0.00037485,120]
[342981945,1732247122183,-200.9,0.000375,112]
[342981946,1732247122211,-185.42222222,0.00037671,120]
[342981947,1732247122237,-151.0,0.00037863,120]
[342981948,1732247122263,-250.0,0.000379,60]
[342981949,1732247122289,-250.0,0.000379,30]
[342981950,1732247122318,-300.0,0.00038,120]
[342981951,1732247122344,-250.0,0.00038,30]
[342981952,1732247122538,-500.0,0.00038356,29]
[342981953,1732247122568,-800.0,0.00038394,60]
[342981954,1732247122597,-185.42222222,0.0003863,120]
[342981955,1732247122626,-3000.0,0.000387,120]
[342981956,1732247122652,-31202.74394132,0.000388,120]
[342981957,1732247122680,-895272.59969767,0.0003888,120]
[342981958,1732247122714,-376782.21739947,0.0003888,120]
[342981959,1732247122741,-289.68605218,0.00038904,90]
[342981960,1732247122769,-151.0,0.00038986,120]
[342981961,1732247122797,-50000.0,0.00039,30]
[342981962,1732247122824,-5192.15228465,0.00039,120]
[342981963,1732247122852,-1000.0,0.00039,120]
[342981964,1732247122879,-400.0,0.00039,120]
[342981965,1732247122906,-2669.63319486,0.000394,30]
[342981966,1732247122932,-500.0,0.0003949,60]
[342981967,1732247122962,-185.42222222,0.00039589,120]
[342981968,1732247122990,-500.0,0.00039726,31]
[342981969,1732247123016,-74793.98899673,0.000398,120]
[342981970,1732247129536,-250.0,0.00033,30]
[342981971,1732247129567,-200.9,0.000375,112]
[342981972,1732247129595,-28026.8184945,0.000398,120]
[342981973,1732247129622,-2239.02432749,0.000398,120]
[342981974,1732247129650,-1115.85549705,0.0003988,30]
[342981975,1732247129676,-10000.0,0.000399,120]
[342981976,1732247129703,-10000.0,0.000399,120]
[342981977,1732247129731,-5000.0,0.000399,120]
[342981978,1732247129756,-1396.5242367,0.0004,30]
[342981979,1732247129781,-166.0,0.0004,30]
[342981980,1732247129805,-1013.0,0.0004,120]
[342981981,1732247129832,-25135.87913938,0.0004,120]
[342981982,1732247129858,-5000.0,0.0004,120]
[342981983,1732247129886,-300.0,0.0004,120]
[342981984,1732247129912,-4998.24119748,0.0004,30]
[342981985,1732247129938,-789.74492298,0.0004,120]
[342981986,1732247129963,-9934.99164534,0.0004,120]
[342981987,1732247129990,-28309.45207891,0.0004,120]
[342981988,1732247130017,-257325.36684702,0.0004,120]
[342981989,1732247130045,-4017.17672933,0.0004,120]
[342981990,1732247130072,-6786.0072825,0.0004,60]
[342981991,1732247130097,-154.902282,0.0004,120]
[342981992,1732247130124,-549.43308897,0.0004,30]
[342981993,1732247130150,-14922.71814482,0.0004,120]
[342981994,1732247130176,-114049.90446167,0.0004,120]
[342981995,1732247130202,-88888.0,0.0004,120]
[342981996,1732247130231,-7088.07343287,0.0004,120]
[342981997,1732247130256,-719.0,0.0004,60]
[342981998,1732247130281,-250.0,0.0004,30]
[342981999,1732247130307,-151.0,0.0004011,120]
[342982000,1732247130333,-6250.0,0.00040183,120]
[342982001,1732247130359,-185.42222222,0.00040548,120]
[342982002,1732247130387,-204.61723834,0.00040548,120]
[342982003,1732247130414,-50000.0,0.00041,50]
[342982004,1732247130441,-3190065.69675465,0.00041,30]
[342982005,1732247130469,-5034.8210919,0.00041,30]
[342982006,1732247130495,-2076.36360403,0.00041,120]
[342982007,1732247130522,-1000.0,0.00041,120]
[342982008,1732247130553,-506.65073095,0.00041,120]
[342982009,1732247130702,-300.0,0.00041,120]
[342982010,1732247130732,-174.60623678,0.00041,120]
[342982011,1732247130757,-5457.0,0.00041,60]
[342982012,1732247130781,-17992.95410908,0.00041,120]
[342982013,1732247130807,-152.0,0.00041041,31]
[342982014,1732247130833,-152.0,0.00041041,31]
[342982015,1732247130858,-152.0,0.00041041,31]
[342982016,1732247130883,-152.0,0.00041041,31]
[342982017,1732247130909,-152.0,0.00041041,31]
[342982018,1732247130934,-152.0,0.00041041,31]
[342982019,1732247130961,-152.0,0.00041041,31]
[342982020,1732247130986,-152.0,0.00041041,31]
[342982021,1732247131012,-500.0,0.00041095,33]
[342982022,1732247131038,-1230.01,0.00041096,30]
[342982468,1732247246606,4600.0,0.00011,2]
[342982469,1732247294061,318.907477,0.00013973,2]
[342982494,1732247395833,250.0,0.00014,3]
[342982535,1732247433228,-300.0,0.00016,4]
[342982537,1732247433238,-300.0,0.00017721,2]
[342982539,1732247433248,-300.0,0.00017721,2]
[342982541,1732247433258,-841.37930742,0.00017722,2]
[342982543,1732247433270,-24058.62069258,0.00017722,2]
[342982546,1732247433280,-424.39601905,0.00018615,2]
[342982548,1732247433290,-210.4,0.00018715,2]
[342982550,1732247433299,-184.75231532,0.00018719,2]
[342982552,1732247433308,-790.56983917,0.00018719,2]
[342982554,1732247433320,-9921.23186844,0.00018719,2]
[342982611,1732247440033,-250.0,0.00016,4]
[342982612,1732247440043,-57.60896,0.00018719,2]
[342982643,1732247445323,-7817.05232788,0.00018719,2]
[342982644,1732247445339,-2016.0,0.00018719,2]
[342982645,1732247445374,-3815.75131697,0.00018719,2]
[342982681,1732247740173,215.71,0.00014,2]
[342982684,1732247885849,367.0,0.00024,60]
[342982685,1732247996827,351.07,0.00022,30]
[342982686,1732248043274,60.08,0.00018,119]
[342982687,1732248043304,93.69374515,0.00018,119]
[342982688,1732248054701,302.962103,0.00013973,2]
[342982690,1732248106463,82.58625485,0.00026301,119]
[342982691,1732248106497,176.28,0.00026301,119]
[342982692,1732248106525,91.63958115,0.00026301,119]
[342982742,1732248632122,-2892.02246605,0.00017631,2]
[342982744,1732248632132,-300.0,0.00017631,2]
[342982746,1732248632142,-24900.0,0.00017632,2]
[342982748,1732248632152,-195.62147551,0.000179,2]
[342982750,1732248632162,-225.0,0.00018,3]
[342982752,1732248632171,-5523.32689668,0.00018405,2]
[342982754,1732248632183,-1702.87048561,0.00018473,2]
[342982756,1732248632192,-702.07585217,0.00018573,2]
[342982758,1732248632201,-516.33709139,0.00018618,2]
[342982760,1732248632210,-500.0,0.00018618,2]
[342982762,1732248632219,-209.91601713,0.00018618,2]
[342982764,1732248632229,-500.0,0.00018618,2]
[342982766,1732248632237,-528.78319475,0.00018618,2]
[342982768,1732248632247,-309.27100618,0.00018618,2]
[342982770,1732248632256,-229.6259546,0.00018619,2]
[342982772,1732248632265,-8371.85605356,0.00018619,2]
[342982996,1732248643313,-6964.03525331,0.00018619,2]
[342982997,1732248643368,-16956.51678228,0.00018619,2]
[342983000,1732248643381,-5966.71399394,0.00018619,2]
[342983013,1732248646048,-458.0548046,0.00018619,2]
[342983014,1732248646063,-1973.83762754,0.00018619,2]
[342983016,1732248655151,151.0,0.000138,2]
[342983017,1732248655477,151.0,0.00013,2]
[342983020,1732248725489,287.813997,0.00013973,2]
[342983063,1732249521916,273.423297,0.00013973,2]
[342983066,1732249637289,-151.0,0.000146,2]
[342983067,1732249645461,248.9,0.00013,2]
[342983189,1732249838194,-151.0,0.000154,2]
[342983191,1732249838204,-300.0,0.00016156,2]
[342983192,1732249838214,-3000.4999798,0.00016157,2]
[342983194,1732249838479,-5957.06147331,0.00016157,2]
[342983195,1732249838491,-3664.133895,0.00016157,2]
[342983229,1732249842825,-9136.786395,0.00016157,2]
[342983231,1732249842838,-3141.51825689,0.00016157,2]
[342983232,1732249842848,-151.0,0.000162,2]
[342983233,1732249842858,-151.0,0.00017,2]
[342983234,1732249842868,-4790.0412941,0.00017209,2]
[342983235,1732249842887,-319.34,0.00017209,2]
[342983238,1732249843371,-1359.0479835,0.00017209,2]
[342983240,1732249843383,-890.05116729,0.00017641,2]
[342983242,1732249843394,-881.17862413,0.00017641,2]
[342983244,1732249843404,-153.0,0.00017741,2]
[342983245,1732249843414,-153.0,0.00017741,2]
[342983247,1732249843424,-420.0,0.00017771,2]
[342983249,1732249843434,-151.0,0.000178,2]
[342983251,1732249843445,-153.0,0.000178,2]
[342983252,1732249843454,-153.0,0.000178,2]
[342983254,1732249843464,-310.00379739,0.00017989,2]
[342983255,1732249843473,-10929.68512387,0.00018123,2]
[342983256,1732249843482,-255.21491923,0.00018185,2]
[342983257,1732249843492,-306.7326582,0.00018329,2]
[342983258,1732249843501,-193.0821909,0.00018329,2]
[342983259,1732249843511,-153.0,0.00018329,2]
[342983260,1732249843520,-153.0,0.00018329,2]
[342983261,1732249843530,-167.7167738,0.00018329,2]
[342983262,1732249843539,-153.0,0.00018329,2]
[342983263,1732249843549,-211.16294601,0.00018473,2]
[342983264,1732249843559,-839.75456918,0.00018473,2]
[342983265,1732249843568,-51732.16846172,0.00018519,2]
[342983266,1732249843580,-14361.50353743,0.00018519,2]
[342983267,1732249843591,-4421.28691667,0.00018519,2]
[342983268,1732249843603,-8869.8796777,0.00018519,2]
[342983269,1732249843614,-39155.14635989,0.00018519,2]
[342983295,1732249851064,1177.97,0.00010959,2]
[342983296,1732249861672,981.64,0.00010959,2]
[342983297,1732249872443,818.04,0.00010959,2]
[342983298,1732249883358,681.7,0.00010959,2]
[342983299,1732249893768,568.08,0.00010959,2]
[342983300,1732249904305,473.4,0.00010959,2]
[342983301,1732249914840,394.5,0.00010959,2]
[342983303,1732249925459,328.75,0.00010959,2]
[342983304,1732249936021,273.96,0.00010959,2]
[342983305,1732249946567,273.96,0.00010959,2]
[342983306,1732249957076,182.64,0.00010959,2]
[342983307,1732249967682,152.2,0.00010959,2]
[342983308,1732249978239,761.01,0.00010959,2]
[342983309,1732250083148,84.64041885,0.00026301,119]
[342983310,1732250083177,176.28,0.00026301,119]
[342983311,1732250083204,176.28,0.00026301,119]
[342983312,1732250083233,176.28,0.00026301,119]
[342983313,1732250083260,176.28,0.00026301,119]
[342983314,1732250083288,176.28,0.00026301,119]
[342983315,1732250083318,176.28,0.00026301,119]
[342983316,1732250083347,176.28,0.00026301,119]
[342983317,1732250130636,2227.96428,0.00025999,60]
[342983434,1732251038353,-302.190754,0.00013973,2]
[342983435,1732251038363,-486.2161875,0.00016213,2]
[342983437,1732251038374,-300.0,0.00016393,2]
[342983439,1732251038383,-300.0,0.00016393,2]
[342983440,1732251038393,-21827.8308955,0.00016394,2]
[342983441,1732251038402,-237.0571022,0.00016468,2]
[342983442,1732251038412,-3089.474699,0.00016703,2]
[342983443,1732251038421,-444.0088301,0.00016974,2]
[342983444,1732251038430,-367.3924182,0.00017039,2]
[342983445,1732251038441,-3089.474699,0.00017388,2]
[342983446,1732251038450,-710.17304281,0.00017717,2]
[342983447,1732251038461,-2975.11819689,0.00017717,2]
[342983448,1732251038653,-19799.49431481,0.00017717,2]
[342983470,1732251043330,-2125.3874883,0.00017717,2]
[342983471,1732251043340,-420.0,0.00017916,2]
[342983472,1732251043350,-1740.68432416,0.00017973,2]
[342983473,1732251043359,-155.1829074,0.00017978,2]
[342983474,1732251043369,-420.0,0.00018032,2]
[342983475,1732251043380,-3089.474699,0.00018073,2]
[342983476,1732251043389,-470.07327879,0.00018259,2]
[342983477,1732251043400,-7051.67481129,0.00018259,2]
[342983478,1732251043408,-3991.98426594,0.00018419,2]
[342983479,1732251043416,-150.23574,0.000186,2]
[342983480,1732251043424,-263.0,0.00018612,2]
[342983481,1732251043433,-265.61183002,0.00018619,2]
[342983482,1732251043441,-225.0,0.000187,4]
[342983483,1732251043450,-150.84686854,0.00018718,2]
[342983484,1732251043460,-489.737751,0.00018718,2]
[342983485,1732251043469,-587.6853012,0.00018718,2]
[342983486,1732251043479,-263.0,0.00018874,2]
[342983488,1732251043488,-4486.40125971,0.0001888,2]
[342983490,1732251043498,-310.00018987,0.00018889,2]
[342983491,1732251043508,-1000.0,0.00018921,2]
[342983494,1732251043517,-751.852175,0.00018921,2]
[342983495,1732251043527,-300.0,0.00019,6]
[342983496,1732251043537,-300.0,0.00019,7]
[342983497,1732251043546,-1771.468889,0.00019019,2]
[342983498,1732251043556,-1771.468889,0.00019019,2]
[342983499,1732251043565,-211.655533,0.00019019,2]
[342983500,1732251043577,-211.655533,0.00019019,2]
[342983501,1732251043588,-180.028586,0.00019019,2]
[342983502,1732251043598,-180.028586,0.00019019,2]
[342983503,1732251043607,-906.90330019,0.00019019,2]
[342983504,1732251043618,-2093.07669981,0.00019019,2]
[342983505,1732251043628,-1338.03142534,0.00019019,2]
[342983506,1732251043640,-400.0579339,0.00019019,2]
[342983507,1732251043655,-1261.89064076,0.00019019,2]
[342983508,1732251043665,-500.0,0.0001902,2]
[342983509,1732251043675,-500.0,0.0001902,2]
[342983510,1732251043686,-500.0,0.0001902,2]
[342983511,1732251043698,-500.0,0.0001902,2]
[342983512,1732251043708,-500.0,0.0001902,2]
[342983513,1732251043718,-500.0,0.0001902,2]
[342983514,1732251043727,-500.0,0.0001902,2]
[342983515,1732251043739,-582.66183189,0.0001902,2]
[342983516,1732251043748,-515.19552191,0.0001902,2]
[342983517,1732251043758,-500.0,0.0001902,2]
[342983518,1732251043767,-500.0,0.0001902,2]
[342983519,1732251043778,-500.0,0.0001902,2]
[342983520,1732251043788,-518.87873556,0.0001902,2]
[342983521,1732251043798,-200.73730447,0.0001902,2]
[342983522,1732251043808,-500.0,0.0001902,2]
[342983523,1732251043818,-500.0,0.0001902,2]
[342983524,1732251043829,-500.0,0.0001902,2]
[342983525,1732251043840,-333.60830701,0.0001902,2]
[342983526,1732251043850,-500.0,0.0001902,2]
[342983527,1732251043859,-532.59414593,0.0001902,2]
[342983528,1732251043870,-500.0,0.0001902,2]
[342983529,1732251043880,-500.0,0.0001902,2]
[342983530,1732251043889,-500.0,0.0001902,2]
[342983531,1732251043899,-500.0,0.0001902,2]
[342983532,1732251043909,-500.0,0.0001902,2]
[342983533,1732251043918,-500.0,0.0001902,2]
[342983534,1732251043928,-500.0,0.0001902,2]
[342983535,1732251043938,-500.0,0.0001902,2]
[342983536,1732251043948,-500.0,0.0001902,2]
[342983537,1732251043957,-500.0,0.0001902,2]
[342983538,1732251043967,-500.0,0.0001902,2]
[342983539,1732251043976,-500.0,0.0001902,2]
[342983540,1732251043985,-500.0,0.0001902,2]
[342983541,1732251043995,-565.66661595,0.0001902,2]
[342983542,1732251044005,-500.0,0.0001902,2]
[342983543,1732251044142,-500.0,0.0001902,2]
[342983544,1732251044152,-500.0,0.0001902,2]
[342983545,1732251044162,-381.3764717,0.0001902,2]
[342983692,1732252233352,-307.275974,0.00013973,2]
[342983693,1732252233363,-300.0,0.00017752,2]
[342983694,1732252233374,-801.224026,0.00017753,2]
[342983721,1732252238547,-4451.02255133,0.00017753,2]
[342983722,1732252238661,-561.75506814,0.00017753,2]
[342983723,1732252238673,-1821.4824315,0.00017753,2]
[342983747,1732252243562,-17264.51592303,0.00017753,2]
[342983749,1732252243573,-655.035758,0.00017792,2]
[342983751,1732252243583,-570.922282,0.00017825,2]
[342983753,1732252243592,-570.922282,0.0001851,2]
[342983755,1732252243601,-219.2,0.00018628,2]
[342983756,1732252243610,-7521.74809009,0.00018832,2]
[342983758,1732252243620,-219.2,0.00018871,2]
[342983760,1732252243629,-340.62962399,0.0001892,2]
[342983762,1732252243639,-500.0,0.0001892,2]
[342983765,1732252243648,-500.0,0.0001892,2]
[342983767,1732252243657,-500.0,0.0001892,2]
[342983769,1732252243667,-500.0,0.0001892,2]
[342983771,1732252243676,-500.0,0.0001892,2]
[342983773,1732252243686,-640.12200618,0.0001892,2]
[342983775,1732252243695,-500.0,0.0001892,2]
[342983777,1732252243705,-453.25941459,0.0001892,2]
[342983781,1732252243714,-44173.81130575,0.00018921,2]
[342983785,1732252243742,-3383.1,0.00018921,2]
[342983787,1732252243753,-1074.37074774,0.00018921,2]
[342983849,1732252246567,-529.77504213,0.00018919,2]
[342983850,1732252246581,-130852.01266906,0.00018921,2]
[342983851,1732252246629,-14106.87941706,0.00018921,2]
[342983875,1732252758211,174.2612121,0.00026,60]
[342983939,1732253251099,300.0,0.00016,6]
[342984001,1732253432793,-310.087458,0.00013973,2]
[342984002,1732253432806,-300.0,0.00017484,2]
[342984003,1732253432820,-2413.02134717,0.00017485,2]
[342984024,1732253440647,-18331.85933412,0.00017485,2]
[342984025,1732253440658,-4155.11931871,0.00017485,2]
[342984026,1732253440668,-250.0,0.00017671,2]
[342984027,1732253440678,-190.307427,0.00017773,2]
[342984028,1732253440687,-666.39307353,0.00017921,2]
[342984032,1732253443819,-333.60692647,0.00017921,2]
[342984034,1732253443829,-70.61316523,0.00018458,2]
[342984036,1732253443841,-119.69426177,0.00018458,2]
[342984038,1732253443852,-1000.0,0.00018586,2]
[342984040,1732253443861,-300.0,0.000186,5]
[342984042,1732253443871,-201.58573088,0.00018619,2]
[342984044,1732253443880,-182.6,0.00018632,2]
[342984046,1732253443890,-153.0,0.000187,2]
[342984047,1732253443900,-153.0,0.000187,2]
[342984049,1732253443909,-220.796733,0.000188,2]
[342984051,1732253443919,-428.548861,0.000188,2]
[342984053,1732253443929,-153.0,0.000188,2]
[342984054,1732253443939,-285.8906368,0.00018852,2]
[342984056,1732253443948,-1000.0,0.0001887,2]
[342984058,1732253443957,-182.6,0.00018874,2]
[342984059,1732253443968,-300.0,0.000189,4]
[342984060,1732253443978,-1000.000001,0.000189,2]
[342984061,1732253443987,-456.1639329,0.000189,2]
[342984062,1732253443996,-637.7184035,0.00018978,2]
[342984063,1732253444006,-4340.88090291,0.00019,2]
[342984071,1732253781030,4000.0,0.00022,31]
[342984153,1732254631998,-312.791243,0.00013973,2]
[342984155,1732254632009,-194.35233713,0.00017268,2]
[342984157,1732254632019,-300.0,0.00017337,2]
[342984159,1732254632029,-300.0,0.00017337,2]
[342984162,1732254632040,-461.38365743,0.00017338,2]
[342984165,1732254632052,-23411.75167487,0.00017338,2]
[342984233,1732254638002,-1026.8646677,0.00017338,2]
[342984235,1732254638012,-190.307427,0.00017368,2]
[342984237,1732254638022,-169.422858,0.00017914,2]
[342984239,1732254638031,-169.422858,0.00017922,2]
[342984241,1732254638042,-169.422858,0.0001793,2]
[342984243,1732254638051,-169.422858,0.00017938,2]
[342984245,1732254638061,-169.422858,0.00017947,2]
[342984247,1732254638071,-169.422858,0.00017955,2]
[342984249,1732254638080,-169.422858,0.00017963,2]
[342984251,1732254638090,-169.422858,0.00017971,2]
[342984253,1732254638100,-169.422858,0.00017979,2]
[342984255,1732254638109,-169.422858,0.00017987,2]
[342984257,1732254638119,-169.422858,0.00017995,2]
[342984259,1732254638128,-167.63661673,0.00018,2]
[342984261,1732254638138,-500.0,0.00018,2]
[342984263,1732254638147,-169.422858,0.00018003,2]
[342984266,1732254638157,-445.8811345,0.00018518,2]